bitfinex/quotes_ETHUSD_20250319
["timestamp","ask_amount","ask_price","bid_price","bid_amount"]
[1742391174392,4.79973879,2015.5,2015.4,4.96179]
[1742391174703,0.55,2015.7,2015.6,4.9613]
[1742391174903,4.79973879,2015.8,2015.7,4.96105]
[1742391175108,0.7822,2016.0,2015.9,4.96056]
[1742391175279,5.58193879,2016.3,2016.2,4.95982]
[1742391175490,4.79973879,2016.3,2016.2,4.95982]
[1742391175785,4.79973879,2016.3,2016.2,4.95973]
[1742391176091,22.75983879,2016.6,2016.5,4.95908]
[1742391176403,4.79973879,2016.6,2016.5,4.95908]
[1742391177181,4.79973879,2016.6,2016.4,4.9593]
[1742391177400,0.55,2016.5,2016.4,4.95931]
[1742391177577,0.55,2016.5,2016.2,4.95981]
[1742391177774,4.79973879,2016.3,2016.1,4.96004]
[1742391177992,0.55,2016.2,2016.1,4.96004]
[1742391178504,0.55,2016.2,2016.0,4.96025]
[1742391178670,9.12007388,2016.2,2015.3,4.96181]
[1742391179005,5.34973879,2015.8,2015.7,4.96092]
[1742391179172,0.55,2015.7,2015.5,4.96152]
[1742391179516,3.55,2015.5,2015.4,4.96179]
[1742391179672,0.55,2015.5,2015.4,4.96179]
[1742391180325,4.79973879,2015.6,2015.5,4.96154]
[1742391180485,5.34973879,2015.6,2015.5,4.96154]
[1742391181083,4.79973879,2015.9,2015.7,4.96105]
[1742391181281,0.55,2015.8,2015.6,4.96127]
[1742391181515,0.55,2015.8,2015.7,4.96105]
[1742391182016,4.79973879,2015.9,2015.8,4.9608]
[1742391182711,10.61273879,2016.2,2016.0,4.96031]
[1742391182874,10.61273879,2016.2,2016.1,4.96007]
[1742391183074,4.79973879,2016.5,2016.4,4.95933]
[1742391183620,3.55,2016.4,2015.8,4.96069]
[1742391183915,4.79973879,2016.7,2016.3,4.95949]
[1742391184122,4.79973879,2016.7,2016.1,0.3869]
[1742391184328,4.79973879,2016.4,2015.8,0.3869]
[1742391184556,0.55,2016.3,2016.0,4.96018]
[1742391184758,5.34973879,2016.1,2016.0,4.96018]
[1742391185046,6.394,2016.6,2016.5,4.95908]
[1742391185449,7.59010388,2016.6,2016.3,4.95951]
[1742391185750,0.55,2016.3,2016.2,4.95982]
[1742391186250,0.55,2016.1,2015.9,4.96035]
[1742391186553,0.55,2015.9,2015.8,4.96074]
[1742391186867,5.848,2016.3,2016.2,4.95982]
[1742391187359,5.848,2016.3,2015.4,4.9616]
[1742391187360,4.9607,2015.9,2015.4,4.9616]
[1742391187519,0.55,2015.5,2015.4,4.96179]
[1742391187919,5.856,2015.8,2015.7,4.96105]
[1742391189469,5.856,2015.8,2015.6,4.96126]
[1742391189627,5.856,2015.8,2015.7,4.96105]
[1742391189830,17.151,2015.9,2015.8,4.9608]
[1742391190359,4.79973879,2016.2,2016.0,4.96031]
[1742391190557,5.878,2016.3,2016.2,4.95982]
[1742391190928,5.878,2016.3,2016.1,9.92002]
[1742391191160,5.878,2016.3,2016.1,9.91991]
[1742391191361,5.878,2016.3,2015.7,4.96089]
[1742391191362,4.79973879,2016.2,2015.7,4.96089]
[1742391191563,4.79973879,2016.2,2016.1,4.96007]
[1742391191875,17.15,2016.4,2016.3,4.95957]
[1742391192075,17.15,2016.4,2016.1,4.96001]
[1742391192225,17.15,2016.4,2016.0,4.96008]
[1742391192428,20.51089288,2016.4,2016.0,4.96008]
[1742391192842,20.51089288,2016.4,2016.0,4.96031]
[1742391193042,4.79973879,2016.2,2016.0,4.9603]
[1742391193249,5.878,2016.1,2016.0,4.9603]
[1742391193550,6.698,2016.1,2015.6,5.41854929]
[1742391193754,4.79973879,2015.8,2015.6,4.96128]
[1742391193958,5.877,2015.7,2015.6,4.96115]
[1742391194727,5.61973879,2016.1,2015.6,4.96115]
[1742391194956,22.76833879,2016.4,2016.3,4.95957]
[1742391195262,17.15,2016.4,2016.3,4.95957]
[1742391195643,21.94973879,2016.4,2015.6,0.3869]
[1742391195845,4.79973879,2016.1,2016.0,4.96031]
[1742391196043,10.67173879,2016.1,2015.9,4.96032]
[1742391196265,10.67173879,2016.1,2015.7,5.41803565]
[1742391196464,4.79973879,2015.8,2015.7,5.41803565]
[1742391197129,4.79973879,2015.8,2015.7,0.45711565]
[1742391197330,4.79973879,2015.8,2015.7,4.96105]
[1742391197867,5.872,2016.1,2016.0,4.96031]
[1742391197868,10.67173879,2016.1,2016.0,4.96031]
[1742391198042,10.67173879,2016.1,2015.9,4.96049]
[1742391198247,10.67173879,2016.1,2015.9,9.92098]
[1742391198448,10.67173879,2016.1,2016.0,4.96031]
[1742391199270,10.67173879,2016.1,2015.8,4.96079]
[1742391199271,10.49044218,2016.1,2015.8,4.96079]
[1742391199470,10.49044218,2016.1,2015.3,0.84408527]
[1742391199471,10.71224,2015.8,2015.3,4.96183]
[1742391199671,4.61844218,2015.5,2015.4,4.96165]
[1742391200249,10.47644218,2015.7,2015.6,4.9613]
[1742391201352,5.43684218,2016.1,2015.8,4.9608]
[1742391201676,11.07818,2016.9,2016.2,4.95982]
[1742391201677,21.76844218,2016.4,2016.2,4.95982]
[1742391201886,21.76844218,2016.4,2016.3,4.95957]
[1742391202943,4.61844218,2016.8,2016.6,4.95884]
[1742391203159,0.8062,2017.0,2016.6,4.95884]
[1742391203160,5.837,2016.9,2016.6,4.95884]
[1742391203365,5.837,2016.9,2016.7,4.95843]
[1742391203560,5.837,2016.9,2016.1,3.0]
[1742391203784,5.837,2016.9,2016.8,4.95834]
[1742391203983,5.59830658,2017.0,2016.9,4.9581]
[1742391203984,10.62810658,2017.0,2016.9,4.9581]
[1742391204188,0.7566,2017.3,2017.2,4.95736]
[1742391204357,4.79210658,2017.3,2017.0,4.95762]
[1742391204695,4.79210658,2017.3,2016.9,4.95809]
[1742391204696,16.26527724,2017.3,2016.9,4.95809]
[1742391204859,16.26527724,2017.3,2016.5,0.3869]
[1742391204860,0.7862,2017.2,2016.6,4.95882]
[1742391205195,4.79210658,2017.3,2017.2,4.95736]
[1742391205364,5.836,2017.3,2017.2,4.95736]
[1742391205693,5.834,2017.4,2016.7,4.95859]
[1742391205902,5.834,2017.4,2016.5,0.3869]
[1742391205903,4.79210658,2017.3,2017.0,4.95783]
[1742391206064,0.7548,2017.2,2016.4,8.41516135]
[1742391206381,0.7548,2017.2,2016.9,4.95801]
[1742391206582,0.7548,2017.2,2016.5,4.95908]
[1742391206784,0.7548,2017.2,2016.6,4.95878]
[1742391207099,0.8175,2018.0,2017.1,0.3869]
[1742391207262,4.9548,2018.3,2018.2,4.95491]
[1742391207263,0.7931,2018.3,2018.2,4.95491]
[1742391207596,1.10748,2018.3,2018.2,4.95491]
[1742391207794,1.31096115,2018.6,2018.3,4.95464]
[1742391207997,5.74713,2018.6,2018.2,4.95491]
[1742391208303,9.213956,2018.2,2017.7,4.95601]
[1742391208464,9.213956,2018.2,2017.0,10.81782]
[1742391208465,4.95681,2017.5,2016.3,6.14]
[1742391208664,10.66210658,2017.5,2017.2,4.95726]
[1742391208998,5.87,2017.5,2017.4,4.95687]
[1742391209187,5.87,2017.8,2017.6,4.95627]
[1742391209417,5.87,2017.8,2017.6,4.95618]
[1742391209587,5.87,2017.8,2017.7,4.95613]
[1742391209788,17.147,2017.9,2017.8,4.95589]
[1742391210576,17.9417,2018.6,2017.6,4.95638]
[1742391210896,4.79210658,2018.5,2018.0,4.95523]
[1742391211095,6.71,2018.4,2017.8,4.95588]
[1742391211402,5.904,2018.4,2018.0,4.95519]
[1742391211598,9.74704658,2018.2,2017.8,4.95577]
[1742391211766,9.74704658,2018.2,2017.7,4.9561]
[1742391211767,5.76445,2018.1,2017.7,4.9561]
[1742391212097,4.79210658,2017.9,2017.6,4.95634]
[1742391212267,5.912,2018.0,2017.8,4.95589]
[1742391212462,7.575186,2018.0,2017.6,4.95619]
[1742391212663,4.79210658,2017.9,2017.2,5.25427]
[1742391212868,4.79210658,2017.9,2017.7,4.956]
[1742391213596,4.79210658,2017.9,2017.8,4.95589]
[1742391213800,5.912,2018.0,2017.9,4.95564]
[1742391214317,6.58413,2018.0,2017.6,4.95636]
[1742391214484,4.95581,2017.9,2017.4,4.95668]
[1742391214682,4.95581,2017.9,2017.2,5.25413]
[1742391214683,0.55,2017.8,2017.2,4.95713]
[1742391214887,1.36721066,2017.7,2017.3,4.9571]
[1742391215086,1.36721066,2017.7,2017.1,4.95737]
[1742391215087,4.95673,2017.5,2017.1,4.95737]
[1742391215306,0.55,2017.5,2016.9,4.95796]
[1742391215491,4.95717,2017.3,2016.9,4.95796]
[1742391215807,0.55,2017.5,2017.0,4.9578]
[1742391215808,5.895,2017.2,2017.0,4.9578]
[1742391216101,0.8079,2017.1,2016.2,0.297]
[1742391216292,5.76557,2017.1,2016.6,4.95868]
[1742391216480,4.95786,2017.0,2016.6,4.95868]
[1742391216677,4.79210658,2017.0,2016.4,4.95914]
[1742391217001,4.79210658,2017.0,2016.2,0.297]
[1742391217002,4.79210658,2017.0,2016.2,5.25681]
[1742391217177,1.89681066,2017.4,2016.4,4.95933]
[1742391217371,1.89681066,2017.4,2016.2,5.2567]
[1742391217574,5.891,2017.3,2016.9,4.95797]
[1742391217797,10.68310658,2017.3,2017.0,4.9577]
[1742391218003,10.68310658,2017.3,2016.3,4.95956]
[1742391218207,15.64034658,2017.3,2016.9,4.95796]
[1742391218388,2.13701666,2017.2,2016.9,4.95809]
[1742391218703,7.09443666,2017.2,2016.7,4.9585]
[1742391218909,4.95776,2017.1,2016.7,4.95857]
[1742391219103,2.13701666,2017.2,2017.0,4.95785]
[1742391219413,4.95746,2017.2,2016.7,4.95846]
[1742391219613,2.13706166,2017.2,2016.9,4.9579]
[1742391219794,2.13706166,2017.2,2017.0,4.95784]
[1742391219983,2.13706166,2017.2,2017.0,4.95767]
[1742391220187,5.898,2017.2,2017.1,4.95761]
[1742391220590,23.038,2017.7,2017.6,4.95638]
[1742391220808,23.038,2017.7,2017.5,9.91308]
[1742391221017,23.038,2017.7,2017.6,4.95638]
[1742391221216,17.138,2017.7,2017.6,4.95638]
[1742391221396,23.032,2017.7,2017.6,4.95638]
[1742391221801,23.032,2017.7,2017.5,4.95661]
[1742391221987,2.3032,2017.6,2017.4,9.9135]
[1742391222310,23.032,2017.7,2017.5,4.9565]
[1742391222910,23.032,2017.7,2017.0,0.297]
[1742391222911,5.70692,2017.5,2017.0,4.95774]
[1742391223081,4.79210658,2017.4,2017.1,4.95753]
[1742391223281,5.888,2017.3,2017.2,4.95733]
[1742391223476,5.888,2017.3,2017.2,4.95736]
[1742391224275,17.138,2017.7,2017.2,4.95736]
[1742391224475,17.138,2017.7,2017.6,4.95638]
[1742391224476,23.024,2017.7,2017.6,4.95638]
[1742391224677,23.024,2017.7,2017.5,4.95656]
[1742391225001,32.77245658,2017.7,2017.3,4.95697]
[1742391225202,4.61150524,2017.4,2017.3,4.95697]
[1742391225402,4.61150524,2017.4,2017.2,9.91453]
[1742391225715,4.61150524,2017.6,2017.5,4.95662]
[1742391226085,4.61150524,2017.6,2017.4,4.95686]
[1742391226416,7.37505576,2017.6,2017.4,4.95686]
[1742391226777,7.37505576,2017.6,2017.5,4.95662]
[1742391226995,27.63550524,2017.7,2017.4,4.95675]
[1742391227191,4.61150524,2017.5,2017.3,4.95711]
[1742391227397,4.61150524,2017.5,2017.2,4.95735]
[1742391227617,4.61150524,2017.3,2017.0,4.95773]
[1742391227801,4.61150524,2017.2,2017.1,4.95752]
[1742391228006,4.61150524,2017.2,2016.9,4.95795]
[1742391228198,4.61150524,2017.0,2016.7,4.95851]
[1742391228393,4.61150524,2017.0,2016.8,4.95831]
[1742391228721,5.874,2016.9,2016.7,4.95851]
[1742391228924,10.48550524,2016.9,2016.8,4.95834]
[1742391229089,5.824,2016.9,2016.8,4.95834]
[1742391229407,10.48550524,2017.2,2017.0,4.95774]
[1742391229606,5.874,2017.2,2017.1,4.95761]
[1742391229807,10.48550524,2017.5,2017.2,4.95728]
[1742391230199,12.78845171,2017.5,2017.2,4.95728]
[1742391230394,12.78845171,2017.5,2017.0,4.95785]
[1742391230395,10.48550524,2017.5,2017.0,4.95785]
[1742391230600,4.61150524,2017.5,2016.7,0.297]
[1742391230783,4.61150524,2017.5,2017.3,4.95701]
[1742391231001,4.61150524,2017.5,2017.4,4.95687]
[1742391231202,9.6669,2017.6,2017.3,4.95708]
[1742391231432,13.81746679,2017.6,2017.2,4.95731]
[1742391231614,13.81746679,2017.6,2017.0,4.95785]
[1742391231930,5.73277,2017.1,2016.7,4.95842]
[1742391232088,11.59077,2017.1,2016.7,9.91692]
[1742391232285,6.6331,2017.1,2016.9,4.95795]
[1742391232489,6.6331,2017.1,2016.8,4.95817]
[1742391232689,6.6331,2017.1,2016.8,4.95823]
[1742391232890,6.6331,2017.1,2016.9,4.95794]
[1742391233090,5.845,2017.3,2017.1,4.95742]
[1742391233313,4.95747,2017.2,2016.8,4.95831]
[1742391233692,4.95747,2017.2,2016.8,4.95822]
[1742391233897,12.24800379,2017.3,2016.9,4.95802]
[1742391234195,12.24800379,2017.3,2016.9,4.95795]
[1742391234390,12.24800379,2017.3,2016.8,4.95833]
[1742391234618,6.56468038,2017.2,2016.8,4.95833]
[1742391234801,4.95772,2017.1,2016.7,4.95848]
[1742391235004,4.78863786,2016.9,2016.4,4.9591]
[1742391235316,6.31186379,2016.8,2016.4,4.9591]
[1742391235725,5.74929,2016.7,2016.2,4.95977]
[1742391235907,9.74757786,2016.6,2016.0,4.9603]
[1742391236249,9.74757786,2016.6,2015.9,5.41694983]
[1742391236250,4.95973,2016.3,2015.9,5.41694983]
[1742391236403,6.6042,2016.2,2015.9,0.45651983]
[1742391236736,11.56403,2016.2,2015.8,4.96066]
[1742391236963,6.6042,2016.2,2015.5,4.9615]
[1742391237146,4.96039,2016.0,2015.6,4.96109]
[1742391237314,6.09944379,2016.1,2015.7,4.96104]
[1742391237496,6.09944379,2016.1,2015.7,9.92199]
[1742391237700,6.6042,2016.2,2015.5,4.96154]
[1742391237929,4.96018,2016.1,2015.7,4.96081]
[1742391238107,9.92041,2016.1,2015.7,4.96081]
[1742391238309,4.96018,2016.1,2015.7,4.96081]
[1742391238508,4.96044,2016.0,2015.6,4.96128]
[1742391238911,4.96044,2016.0,2015.2,5.25913]
[1742391238912,4.96123,2015.7,2015.2,4.96228]
[1742391239134,4.96123,2015.7,2015.0,4.96255]
[1742391239135,5.818,2015.6,2015.0,4.96255]
[1742391239310,10.77954,2015.6,2015.1,4.96246]
[1742391239511,10.7794,2015.6,2015.1,4.96242]
[1742391239714,5.818,2015.6,2015.2,4.96214]
[1742391239914,4.96165,2015.5,2015.1,4.96239]
[1742391240220,7.50609279,2015.6,2015.1,4.96234]
[1742391240429,12.46739279,2015.6,2015.1,4.96234]
[1742391240611,4.96164,2015.5,2015.1,4.96234]
[1742391240813,4.96164,2015.5,2015.0,4.96273]
[1742391241004,5.78539,2015.3,2014.9,4.96302]
[1742391241208,5.808,2015.2,2014.8,4.96313]
[1742391241829,5.808,2015.2,2014.8,4.9631]
[1742391242123,5.808,2015.2,2015.0,4.96275]
[1742391242323,5.808,2015.2,2015.1,4.96253]
[1742391242501,5.808,2015.2,2015.0,4.96275]
[1742391242705,5.808,2015.2,2015.1,4.96253]
[1742391244841,5.785,2015.5,2015.3,4.96202]
[1742391246143,2.47299279,2015.6,2015.4,4.96179]
[1742391246144,0.7849,2015.6,2015.4,4.96179]
[1742391246318,0.7789,2015.9,2015.8,4.96067]
[1742391246520,0.7789,2015.9,2015.7,9.92185]
[1742391246521,6.5569,2015.9,2015.7,9.92185]
[1742391246735,0.7789,2015.9,2015.8,4.9608]
[1742391246910,5.776,2015.9,2015.8,4.9608]
[1742391247244,21.93263786,2016.1,2015.7,4.96081]
[1742391247404,10.80694379,2016.0,2015.5,4.96132]
[1742391247603,4.96123,2015.7,2015.3,4.96185]
[1742391247807,0.7578,2015.5,2015.1,4.96233]
[1742391248038,0.7578,2015.5,2015.2,4.96226]
[1742391248258,0.7578,2015.5,2015.1,4.96243]
[1742391248420,0.7578,2015.5,2015.2,4.96217]
[1742391248607,2.206911,2015.5,2015.1,4.96243]
[1742391248808,7.168461,2015.5,2015.1,4.96238]
[1742391249117,2.411215,2015.1,2014.9,4.96282]
[1742391249321,5.765,2015.1,2014.9,4.96294]
[1742391249520,5.765,2015.1,2015.0,4.96277]
[1742391250446,6.3415,2015.1,2014.2,4.96452]
[1742391250749,0.7511,2015.0,2014.8,4.96316]
[1742391250945,5.71393,2015.0,2014.5,4.96382]
[1742391251124,5.99418086,2014.9,2014.5,4.96382]
[1742391251324,5.99418086,2014.9,2014.6,4.96359]
[1742391251526,3.7511,2015.0,2014.8,4.96311]
[1742391252252,0.7511,2015.0,2014.9,4.96302]
[1742391252450,6.5061,2015.0,2014.9,4.96302]
[1742391252748,7.15671,2015.0,2014.3,4.96434]
[1742391252955,7.15671,2015.0,2014.7,4.96346]
[1742391253318,7.15671,2015.0,2014.6,4.96359]
[1742391253628,7.15671,2015.0,2014.7,4.96345]
[1742391254129,12.11953,2015.0,2014.6,9.92721]
[1742391254345,2.24081679,2014.9,2014.4,4.9642]
[1742391254552,7.20397679,2014.9,2014.5,4.96387]
[1742391255266,7.20387679,2014.9,2014.5,4.96386]
[1742391255964,7.20387679,2014.9,2014.6,4.96375]
[1742391256264,2.24081679,2014.9,2014.6,4.9636]
[1742391256575,2.24081679,2014.9,2014.5,4.96399]
[1742391256576,6.5061,2015.0,2014.7,4.96339]
[1742391256788,6.5061,2015.0,2014.8,4.96324]
[1742391256940,3.7511,2015.0,2014.8,4.96324]
[1742391257266,10.33091727,2014.9,2014.6,4.96358]
[1742391257671,5.715,2014.8,2014.6,9.92717]
[1742391257836,5.715,2014.8,2014.6,4.96358]
[1742391258034,4.62291727,2014.7,2014.5,4.96388]
[1742391258230,4.62291727,2014.7,2014.6,4.96376]
[1742391258448,5.715,2014.8,2014.7,4.96351]
[1742391260790,10.33791727,2014.8,2014.6,4.96376]
[1742391260997,10.33791727,2014.8,2014.2,4.96475]
[1742391260998,10.9786503,2014.8,2014.2,4.96475]
[1742391261173,10.9786503,2014.8,2014.6,4.96359]
[1742391261494,10.33791727,2014.8,2014.7,4.96351]
[1742391263575,5.715,2014.8,2014.7,4.96351]
[1742391263784,0.7511,2015.0,2014.9,4.96302]
[1742391264076,0.99538326,2015.2,2015.1,4.96239]
[1742391264077,3.0,2015.2,2015.1,4.96239]
[1742391264420,8.669,2015.2,2015.1,4.96239]
[1742391264695,10.47496,2015.1,2014.7,4.96342]
[1742391264998,5.17291727,2015.1,2014.9,4.96284]
[1742391265200,5.17291727,2015.1,2015.0,4.96277]
[1742391265201,4.62291727,2015.1,2015.0,4.96277]
[1742391265384,25.828,2015.2,2015.0,4.96277]
[1742391265586,25.828,2015.2,2015.1,4.96253]
[1742391265810,25.828,2015.2,2015.0,4.96277]
[1742391265963,4.62291727,2015.1,2014.9,4.96289]
[1742391266163,4.62291727,2015.1,2015.0,4.96277]
[1742391266799,4.62291727,2015.1,2014.9,4.96289]
[1742391266800,4.62291727,2015.1,2014.8,4.96318]
[1742391266998,4.62291727,2014.9,2014.8,4.96318]
[1742391267202,4.62291727,2015.1,2014.9,4.96281]
[1742391267405,4.62291727,2015.1,2015.0,4.96277]
[1742391267785,0.7549,2015.3,2015.2,4.96228]
[1742391269008,10.27291727,2015.4,2015.2,9.92441]
[1742391269172,0.55,2015.3,2015.0,4.96274]
[1742391269374,4.62291727,2015.1,2015.0,4.96274]
[1742391269915,5.17291727,2015.3,2015.2,4.96228]
[1742391270217,5.17291727,2015.3,2015.1,4.96242]
[1742391270414,5.17291727,2015.3,2015.1,4.96229]
[1742391270888,5.17291727,2015.3,2015.2,4.96228]
[1742391271210,4.62291727,2015.3,2015.2,4.96228]
[1742391271414,17.159,2015.4,2015.3,4.96204]
[1742391271785,10.27291727,2015.7,2015.6,4.9613]
[1742391272594,10.27291727,2015.7,2015.5,4.96144]
[1742391272801,11.376109,2015.7,2015.5,4.96144]
[1742391273007,11.376109,2015.7,2015.6,4.9613]
[1742391273405,10.27291727,2015.7,2015.6,4.9613]
[1742391273606,4.62291727,2015.9,2015.8,4.96059]
[1742391273785,10.27291727,2015.9,2015.8,4.96059]
[1742391275087,10.27291727,2015.9,2015.7,4.9609]
[1742391275317,13.587608,2015.9,2015.8,4.9608]
[1742391275522,17.159,2016.0,2015.9,4.96056]
[1742391275889,10.27191727,2016.4,2016.3,4.95957]
[1742391276092,10.27191727,2016.4,2016.2,4.95973]
[1742391276093,10.27191727,2016.4,2015.9,0.297]
[1742391276288,5.649,2016.4,2016.3,4.95957]
[1742391276490,6.29676,2016.4,2016.3,4.95957]
[1742391276694,10.27191727,2016.4,2016.3,4.95957]
[1742391277094,5.649,2016.4,2016.3,4.95957]
[1742391277998,10.27191727,2016.4,2016.3,4.95957]
[1742391279017,10.27191727,2016.4,2015.9,0.297]
[1742391279344,4.62291727,2016.0,2015.8,4.9606]
[1742391279522,0.55,2016.0,2015.7,4.96087]
[1742391279845,6.198,2016.0,2015.8,4.9607]
[1742391279999,7.391016,2016.0,2015.7,4.96103]
[1742391280308,4.62291727,2015.8,2015.7,4.96085]
[1742391280626,9.58380727,2015.8,2015.4,4.9617]
[1742391280832,10.82091727,2016.0,2015.6,4.9613]
[1742391280833,33.27287,2016.0,2015.6,4.9613]
[1742391281127,5.51081,2015.8,2015.4,4.96173]
[1742391281325,1.3228,2015.6,2015.2,4.96228]
[1742391281527,5.648,2015.5,2014.8,4.96326]
[1742391281693,5.648,2015.5,2015.3,4.96181]
[1742391282100,10.60963,2015.5,2015.1,4.96252]
[1742391282300,4.62291727,2015.3,2015.1,4.96252]
[1742391282505,9.92517,2015.1,2014.8,4.96326]
[1742391282804,4.62291727,2014.9,2014.3,0.297]
[1742391283004,4.62291727,2014.5,2014.3,4.96437]
[1742391283206,10.27091727,2014.5,2014.0,0.297]
[1742391283414,10.27091727,2014.5,2014.0,4.96505]
[1742391283415,4.62291727,2014.2,2014.0,4.96505]
[1742391283618,4.62291727,2014.2,2014.1,4.96499]
[1742391283939,0.37762326,2015.1,2014.2,0.297]
[1742391284113,4.62291727,2014.7,2014.4,4.96425]
[1742391284436,4.62291727,2014.5,2014.4,4.96425]
[1742391284851,5.648,2014.7,2014.5,4.96401]
[1742391285038,4.62291727,2014.6,2014.5,4.96401]
[1742391285638,5.648,2014.7,2014.6,4.96376]
[1742391285877,10.27091727,2014.7,2014.6,4.96376]
[1742391286056,10.27091727,2014.7,2014.4,4.96418]
[1742391286258,4.62291727,2014.5,2014.2,4.96473]
[1742391286565,4.62291727,2014.3,2013.9,0.297]
[1742391286729,10.27091727,2014.3,2014.1,4.96482]
[1742391287249,4.96475,2014.2,2013.8,4.96552]
[1742391287451,4.62291727,2013.9,2013.8,4.96552]
[1742391288254,4.62291727,2013.9,2013.7,4.96586]
[1742391288459,10.27191727,2013.9,2013.8,4.96573]
[1742391288675,10.27191727,2013.9,2013.7,4.96581]
[1742391288825,10.27191727,2013.9,2013.8,4.96573]
[1742391289146,10.27191727,2013.9,2013.7,4.96594]
[1742391289147,5.649,2013.9,2013.7,4.96594]
[1742391289455,0.8011,2014.0,2013.6,4.96608]
[1742391289671,7.94003268,2014.0,2013.5,4.96629]
[1742391289971,7.93989268,2014.0,2013.6,4.96613]
[1742391290164,7.93989268,2014.0,2013.6,4.96607]
[1742391290635,2.97465268,2014.0,2013.6,4.96607]
[1742391290842,10.45467678,2014.2,2013.9,4.96548]
[1742391291043,5.649,2014.2,2014.0,4.9652]
[1742391291245,5.649,2014.2,2013.9,4.96544]
[1742391291955,0.55,2014.1,2013.7,4.96573]
[1742391292142,1.90121257,2014.1,2013.8,4.96571]
[1742391292663,5.649,2014.2,2014.0,4.96524]
[1742391292866,5.649,2014.2,2013.5,4.96647]
[1742391293177,5.649,2014.2,2014.0,4.96501]
[1742391293477,4.96501,2014.0,2013.6,4.96598]
[1742391293773,1.048015,2013.9,2013.6,4.96598]
[1742391293959,5.65,2013.8,2013.6,4.96598]
[1742391294337,5.65,2013.8,2013.7,4.96598]
[1742391295152,5.65,2013.8,2013.6,4.96618]
[1742391295355,5.65,2013.8,2013.6,4.96605]
[1742391295562,5.65,2013.8,2013.1,3.0]
[1742391295766,12.0,2013.8,2013.3,4.96675]
[1742391295946,7.0341,2013.8,2013.4,4.96653]
[1742391296147,12.0,2013.8,2013.3,4.96687]
[1742391296348,4.96608,2013.7,2013.3,4.96687]
[1742391296560,0.55,2013.7,2013.4,4.96671]
[1742391296878,4.96644,2013.6,2013.1,4.96726]
[1742391297176,4.96654,2013.5,2013.0,9.93502]
[1742391297392,6.475,2013.4,2013.0,4.96749]
[1742391297575,6.475,2013.4,2013.2,4.96699]
[1742391297753,5.651,2013.4,2013.3,4.96696]
[1742391297952,5.651,2013.4,2013.2,4.96699]
[1742391298184,5.651,2013.4,2013.1,4.96735]
[1742391298481,5.651,2013.4,2012.7,0.297]
[1742391298482,5.651,2013.4,2013.2,4.96709]
[1742391299052,5.651,2013.4,2013.0,4.9677]
[1742391299259,5.651,2013.4,2013.1,4.96742]
[1742391299450,0.8292,2013.3,2013.0,4.9676]
[1742391300083,0.8292,2013.3,2012.7,0.297]
[1742391300084,4.96753,2013.1,2012.7,4.96834]
[1742391300281,5.651,2013.0,2012.5,4.96894]
[1742391300589,5.651,2013.3,2013.2,4.96703]
[1742391300896,17.9718,2013.6,2013.3,4.9669]
[1742391300897,20.9718,2013.6,2013.3,4.9669]
[1742391301068,22.816,2013.6,2013.5,4.96647]
[1742391301296,22.816,2013.6,2013.4,4.96667]
[1742391301473,22.816,2013.6,2013.5,4.96647]
[1742391301887,0.7862,2013.9,2013.5,4.96647]
[1742391302048,23.6405,2014.2,2014.0,4.96509]
[1742391302555,22.821,2014.2,2013.9,4.96547]
[1742391302750,0.8321,2014.0,2013.5,4.96646]
[1742391302951,4.9656,2013.9,2013.5,4.96646]
[1742391303187,4.96557,2013.9,2013.4,0.297]
[1742391303484,5.652,2013.8,2013.7,4.96598]
[1742391303993,4.96598,2013.7,2013.5,4.96642]
[1742391304289,0.7925,2014.3,2014.2,4.96475]
[1742391304462,5.652,2014.5,2014.2,4.96475]
[1742391304664,7.289185,2014.5,2014.2,4.96464]
[1742391305069,7.289185,2014.5,2014.2,4.96458]
[1742391305257,0.7925,2014.6,2014.3,4.96447]
[1742391305458,17.54140096,2014.9,2014.0,4.96523]
[1742391305459,17.9301,2014.9,2014.2,4.96475]
[1742391305660,17.9301,2014.9,2014.6,4.96375]
[1742391305983,17.17,2014.9,2014.8,4.96327]
[1742391306363,5.652,2015.1,2014.9,4.96294]
[1742391306564,5.652,2015.1,2015.0,4.96277]
[1742391306986,17.9636,2015.5,2015.3,4.96183]
[1742391307195,22.822,2015.5,2015.4,4.96179]
[1742391307378,5.652,2015.8,2015.5,4.96143]
[1742391307692,5.652,2015.8,2015.7,4.96105]
[1742391308698,5.652,2015.8,2015.5,4.96141]
[1742391308994,5.652,2015.8,2015.5,4.96134]
[1742391309196,5.652,2015.8,2015.1,5.948]
[1742391309197,10.6129,2015.8,2015.4,4.96167]
[1742391309394,5.652,2015.8,2015.4,4.96163]
[1742391309581,1.54183568,2015.7,2015.4,4.96178]
[1742391310100,2.30603568,2015.7,2015.4,4.96178]
[1742391310298,2.30603568,2015.7,2015.4,4.96166]
[1742391310299,0.7642,2015.7,2015.4,4.96166]
[1742391310498,0.7642,2015.7,2015.5,4.96152]
[1742391310694,0.7642,2015.7,2015.1,5.2595]
[1742391310695,5.652,2015.8,2015.6,4.96116]
[1742391310996,5.652,2015.8,2015.7,4.96105]
[1742391311171,5.65,2016.0,2015.9,4.96056]
[1742391311381,17.17,2016.2,2016.0,4.96014]
[1742391311575,17.17,2016.2,2015.8,4.96068]
[1742391311899,20.80573568,2016.2,2015.9,4.96056]
[1742391312115,20.80573568,2016.2,2015.9,4.96039]
[1742391312277,20.17,2016.2,2016.1,4.96007]